fUSD/lending_fUSD_20240802
["ID","MTS","AMOUNT","RATE_DAILY","PERIOD"]
[333929884,1722631907608,-500.0,0.00017808,2]
[333929885,1722631907617,-500.0,0.00017808,2]
[333929886,1722631907626,-675.11,0.00017808,2]
[333929887,1722631907636,-1670.99,0.00017808,2]
[333929888,1722631907645,-500.0,0.00017808,2]
[333929889,1722631907656,-4143.05,0.00017808,2]
[333929890,1722631907666,-500.0,0.00017808,2]
[333929891,1722631907676,-500.0,0.00017808,2]
[333929892,1722631907689,-4017.26,0.00017808,2]
[333929893,1722631907701,-582.86,0.00017808,2]
[333929894,1722631907710,-500.0,0.00017808,2]
[333929895,1722631907721,-500.0,0.00017808,2]
[333929896,1722631907731,-1312.25,0.00017808,2]
[333929897,1722631907740,-500.0,0.00017808,2]
[333929898,1722631907750,-5428.93,0.00017808,2]
[333929899,1722631907762,-2665.91,0.00017808,2]
[333929900,1722631907772,-1042.43,0.00017808,2]
[333929901,1722631907782,-500.0,0.00017808,2]
[333929902,1722631907792,-682.61,0.00017808,2]
[333929903,1722631907801,-500.0,0.00017808,2]
[333929904,1722631907811,-500.0,0.00017808,2]
[333929905,1722631907821,-500.0,0.00017808,2]
[333929906,1722631907831,-500.0,0.00017808,2]
[333929907,1722631907840,-500.0,0.00017808,2]
[333929908,1722631907849,-542.86,0.00017808,2]
[333929909,1722631907859,-5597.96,0.00017808,2]
[333929910,1722631907870,-224.2725665,0.00017808,2]
[333929911,1722631907880,-2581.7,0.00017808,2]
[333929912,1722631907889,-500.0,0.00017808,2]
[333929913,1722631907899,-770.59,0.00017808,2]
[333929914,1722631907908,-500.0,0.00017808,2]
[333929915,1722631907918,-1538.15,0.00017808,2]
[333929916,1722631907927,-500.0,0.00017808,2]
[333929917,1722631907936,-4231.25,0.00017808,2]
[333929918,1722631907946,-19964.17,0.00017808,2]
[333929919,1722631907957,-1647.69,0.00017808,2]
[333929920,1722631907966,-580.13,0.00017808,2]
[333929921,1722631907976,-500.0,0.00017808,2]
[333929922,1722631907985,-674.61,0.00017808,2]
[333929923,1722631907994,-500.0,0.00017808,2]
[333929924,1722631908003,-597.33,0.00017808,2]
[333929925,1722631908013,-5044.32,0.00017808,2]
[333929926,1722631908022,-500.0,0.00017808,2]
[333929927,1722631908031,-500.0,0.00017808,2]
[333929928,1722631908041,-1410.02,0.00017808,2]
[333929929,1722631908051,-1670.95,0.00017808,2]
[333929930,1722631908061,-500.0,0.00017808,2]
[333929931,1722631908071,-1333.37,0.00017808,2]
[333929932,1722631908081,-3305.18,0.00017808,2]
[333929933,1722631908091,-500.0,0.00017808,2]
[333929934,1722631908100,-5839.16,0.00017808,2]
[333929935,1722631908110,-500.0,0.00017808,2]
[333929936,1722631908120,-2491.77,0.00017808,2]
[333929937,1722631908130,-500.0,0.00017808,2]
[333929938,1722631908140,-500.0,0.00017808,2]
[333929939,1722631908149,-3253.37,0.00017808,2]
[333929940,1722631908159,-150.0,0.00017808,2]
[333929941,1722631908168,-1525.69,0.00017808,2]
[333929942,1722631908178,-680.81,0.00017808,2]
[333929943,1722631908188,-1475.58,0.00017808,2]
[333929944,1722631908197,-874.43,0.00017808,2]
[333929945,1722631908207,-881.6,0.00017808,2]
[333929946,1722631908216,-500.0,0.00017808,2]
[333929947,1722631908225,-1811.88,0.00017808,2]
[333929948,1722631908235,-963.16,0.00017808,2]
[333929949,1722631908245,-1489.44,0.00017808,2]
[333929950,1722631908254,-2222.35,0.00017808,2]
[333929951,1722631908263,-1632.57,0.00017808,2]
[333929952,1722631908273,-1023.72,0.00017808,2]
[333929953,1722631908283,-500.0,0.00017808,2]
[333929954,1722631908293,-500.0,0.00017808,2]
[333929955,1722631908302,-12414.66,0.00017808,2]
[333929956,1722631908312,-709.25,0.00017808,2]
[333929957,1722631908321,-753.62,0.00017808,2]
[333929958,1722631908331,-506.18,0.00017808,2]
[333929959,1722631908340,-652.1,0.00017808,2]
[333929960,1722631908350,-641.97,0.00017808,2]
[333929961,1722631908359,-560.86,0.00017808,2]
[333929962,1722631908368,-500.0,0.00017808,2]
[333929963,1722631908378,-480.53729199,0.00017808,2]
[333929964,1722631908388,-1035.53,0.00017808,2]
[333929965,1722631908398,-1941.09,0.00017808,2]
[333929966,1722631908407,-56866.82,0.00017808,2]
[333929967,1722631908417,-2254.17,0.00017808,2]
[333929968,1722631908426,-1098.24,0.00017808,2]
[333929969,1722631908436,-2191.59,0.00017808,2]
[333929970,1722631908445,-1032.58,0.00017808,2]
[333929971,1722631908457,-534.81,0.00017808,2]
[333929972,1722631908467,-1471.92,0.00017808,2]
[333929973,1722631908476,-722.26,0.00017808,2]
[333929974,1722631908485,-1164.82,0.00017808,2]
[333929975,1722631908495,-1289.96,0.00017808,2]
[333929976,1722631908505,-929.85,0.00017808,2]
[333929977,1722631908515,-2008.59,0.00017808,2]
[333929978,1722631908525,-1825.01,0.00017808,2]
[333929979,1722631908534,-1026.06,0.00017808,2]
[333929980,1722631908544,-876.3,0.00017808,2]
[333929981,1722631908553,-500.0,0.00017808,2]
[333929982,1722631908563,-1590.68,0.00017808,2]
[333929983,1722631908572,-1819.5,0.00017808,2]
[333929984,1722631908582,-4221.24,0.00017808,2]
[333929985,1722631908592,-500.0,0.00017808,2]
[333929986,1722631908601,-500.0,0.00017808,2]
[333929987,1722631908611,-2709.73,0.00017808,2]
[333929988,1722631908620,-1273.14,0.00017808,2]
[333929989,1722631908630,-2065.12,0.00017808,2]
[333929990,1722631908639,-777.69,0.00017808,2]
[333929991,1722631908649,-500.0,0.00017808,2]
[333929992,1722631908658,-21339.92,0.00017808,2]
[333929993,1722631908667,-728.61,0.00017808,2]
[333929994,1722631908682,-1275.99,0.00017808,2]
[333929995,1722631908694,-2937.5,0.00017808,2]
[333929996,1722631908708,-536.05,0.00017808,2]
[333929997,1722631908719,-2027.9,0.00017808,2]
[333929998,1722631908729,-1082.28,0.00017808,2]
[333929999,1722631908738,-1697.37,0.00017808,2]
[333930000,1722631908748,-10282.29,0.00017808,2]
[333930001,1722631908758,-1205.76,0.00017808,2]
[333930002,1722631908768,-1232.26,0.00017808,2]
[333930003,1722631908778,-8341.36,0.00017808,2]
[333930004,1722631908787,-500.0,0.00017808,2]
[333930005,1722631908797,-500.0,0.00017808,2]
[333930006,1722631908807,-18588.87,0.00017808,2]
[333930007,1722631908816,-2444.44,0.00017808,2]
[333930008,1722631908826,-1028.42,0.00017808,2]
[333930009,1722631908835,-811.82,0.00017808,2]
[333930010,1722631908846,-1666.82,0.00017808,2]
[333930011,1722631908856,-2041.7,0.00017808,2]
[333930012,1722631908866,-854.03,0.00017808,2]
[333930013,1722631908875,-2549.35,0.00017808,2]
[333930014,1722631908885,-3907.73,0.00017808,2]
[333930015,1722631908894,-962.09,0.00017808,2]
[333930016,1722631908904,-818.92,0.00017808,2]
[333930017,1722631908913,-2495.02,0.00017808,2]
[333930018,1722631908923,-12083.15,0.00017808,2]
[333930019,1722631908932,-4999.3,0.00017808,2]
[333930020,1722631908942,-2085.16,0.00017808,2]
[333930021,1722631908954,-2257.59,0.00017808,2]
[333930022,1722631908964,-638.28,0.00017808,2]
[333930023,1722631908973,-2414.82,0.00017808,2]
[333930024,1722631908983,-1355.63,0.00017808,2]
[333930025,1722631908992,-500.0,0.00017808,2]
[333930026,1722631909003,-500.0,0.00017808,2]
[333930027,1722631909012,-500.0,0.00017808,2]
[333930028,1722631909022,-500.0,0.00017808,2]
[333930029,1722631909032,-874.71,0.00017808,2]
[333930030,1722631909042,-500.0,0.00017808,2]
[333930031,1722631909052,-608.96,0.00017808,2]
[333930032,1722631909062,-9705.12,0.00017808,2]
[333930033,1722631909071,-500.0,0.00017808,2]
[333930034,1722631909081,-14082.4,0.00017808,2]
[333930035,1722631909091,-1893.08,0.00017808,2]
[333930036,1722631909100,-523.03,0.00017808,2]
[333930037,1722631909110,-1119.23,0.00017808,2]
[333930038,1722631909120,-500.0,0.00017808,2]
[333930039,1722631909129,-683.87,0.00017808,2]
[333930040,1722631909140,-500.0,0.00017808,2]
[333930041,1722631909149,-1860.28,0.00017808,2]
[333930042,1722631909159,-500.0,0.00017808,2]
[333930043,1722631909169,-500.0,0.00017808,2]
[333930044,1722631909179,-1382.6,0.00017808,2]
[333930045,1722631909188,-903.96,0.00017808,2]
[333930046,1722631909198,-3530.0,0.00017808,2]
[333930047,1722631909212,-3961.34,0.00017808,2]
[333930048,1722631909221,-500.0,0.00017808,2]
[333930049,1722631909591,-500.0,0.00017808,2]
[333930050,1722631909601,-500.0,0.00017808,2]
[333930051,1722631909611,-500.0,0.00017808,2]
[333930052,1722631909621,-843.81,0.00017808,2]
[333930053,1722631909630,-12529.11,0.00017808,2]
[333930054,1722631909640,-500.0,0.00017808,2]
[333930055,1722631909649,-500.0,0.00017808,2]
[333930056,1722631909659,-954.34,0.00017808,2]
[333930057,1722631909668,-639.03,0.00017808,2]
[333930058,1722631909682,-500.0,0.00017808,2]
[333930059,1722631909692,-3001.26,0.00017808,2]
[333930060,1722631909704,-500.0,0.00017808,2]
[333930061,1722631909715,-683.57,0.00017808,2]
[333930062,1722631909725,-1798.8,0.00017808,2]
[333930063,1722631909734,-500.0,0.00017808,2]
[333930064,1722631909744,-5697.34,0.00017808,2]
[333930065,1722631909755,-1463.12,0.00017808,2]
[333930066,1722631909766,-4074.77,0.00017808,2]
[333930067,1722631909776,-897.77,0.00017808,2]
[333930068,1722631909786,-878.31,0.00017808,2]
[333930069,1722631909796,-5102.81,0.00017808,2]
[333930070,1722631909806,-655.72,0.00017808,2]
[333930071,1722631909816,-1743.47,0.00017808,2]
[333930072,1722631909826,-500.0,0.00017808,2]
[333930073,1722631909836,-1173.24,0.00017808,2]
[333930074,1722631909846,-500.0,0.00017808,2]
[333930075,1722631909855,-6837.04,0.00017808,2]
[333930076,1722631909865,-5756.18,0.00017808,2]
[333930077,1722631909875,-1257.32,0.00017808,2]
[333930078,1722631909885,-500.0,0.00017808,2]
[333930079,1722631909895,-1650.22,0.00017808,2]
[333930080,1722631909905,-2765.65,0.00017808,2]
[333930081,1722631909915,-2301.74,0.00017808,2]
[333930082,1722631909925,-6409.64,0.00017808,2]
[333930083,1722631909935,-500.0,0.00017808,2]
[333930084,1722631909945,-1236.74,0.00017808,2]
[333930085,1722631909956,-509.19,0.00017808,2]
[333930086,1722631909966,-733.33,0.00017808,2]
[333930087,1722631909976,-500.0,0.00017808,2]
[333930088,1722631909986,-500.0,0.00017808,2]
[333930089,1722631909996,-5372.26,0.00017808,2]
[333930090,1722631910006,-5544.95,0.00017808,2]
[333930091,1722631910016,-3951.1,0.00017808,2]
[333930092,1722631910026,-1851.65,0.00017808,2]
[333930093,1722631910035,-2577.99,0.00017808,2]
[333930094,1722631910045,-3586.66,0.00017808,2]
[333930095,1722631910055,-1224.81,0.00017808,2]
[333930096,1722631910065,-500.0,0.00017808,2]
[333930097,1722631910075,-2249.46,0.00017808,2]
[333930098,1722631910085,-1209.35,0.00017808,2]
[333930099,1722631910095,-10535.6,0.00017808,2]
[333930100,1722631910105,-2406.02,0.00017808,2]
[333930101,1722631910115,-559.04,0.00017808,2]
[333930102,1722631910125,-1453.7,0.00017808,2]
[333930103,1722631910134,-2538.45,0.00017808,2]
[333930104,1722631910143,-206.78004712,0.00017808,2]
[333930105,1722631910154,-8692.9,0.00017808,2]
[333930106,1722631910164,-500.0,0.00017808,2]
[333930107,1722631910175,-3396.73,0.00017808,2]
[333930108,1722631910184,-3668.51,0.00017808,2]
[333930109,1722631910194,-2268.82,0.00017808,2]
[333930110,1722631910205,-1514.47,0.00017808,2]
[333930111,1722631910215,-1406.85,0.00017808,2]
[333930112,1722631910225,-500.0,0.00017808,2]
[333930113,1722631910235,-523.86,0.00017808,2]
[333930114,1722631910245,-502.95,0.00017808,2]
[333930115,1722631910255,-688.7,0.00017808,2]
[333930116,1722631910264,-1979.47,0.00017808,2]
[333930117,1722631910274,-922.87,0.00017808,2]
[333930118,1722631910284,-3211.99,0.00017808,2]
[333930119,1722631910294,-797.53,0.00017808,2]
[333930120,1722631910304,-2191.83,0.00017808,2]
[333930121,1722631910313,-3705.69,0.00017808,2]
[333930122,1722631910323,-500.0,0.00017808,2]
[333930123,1722631910333,-500.0,0.00017808,2]
[333930124,1722631910342,-1575.51,0.00017808,2]
[333930125,1722631910352,-3196.73,0.00017808,2]
[333930126,1722631910361,-500.0,0.00017808,2]
[333930127,1722631910371,-2709.61,0.00017808,2]
[333930128,1722631910381,-2713.18,0.00017808,2]
[333930129,1722631910391,-4453.97,0.00017808,2]
[333930130,1722631910400,-1958.22,0.00017808,2]
[333930131,1722631910410,-500.0,0.00017808,2]
[333930132,1722631910420,-2340.98,0.00017808,2]
[333930133,1722631910430,-500.0,0.00017808,2]
[333930134,1722631910439,-563.69,0.00017808,2]
[333930135,1722631910449,-869.62,0.00017808,2]
[333930136,1722631910460,-2375.03,0.00017808,2]
[333930137,1722631910469,-500.0,0.00017808,2]
[333930138,1722631910478,-2389.86,0.00017808,2]
[333930139,1722631910487,-500.0,0.00017808,2]
[333930140,1722631910497,-1715.15,0.00017808,2]
[333930141,1722631910507,-630.02,0.00017808,2]
[333930142,1722631910516,-3562.05,0.00017808,2]
[333930143,1722631910525,-500.0,0.00017808,2]
[333930144,1722631910535,-2469.32,0.00017808,2]
[333930145,1722631910544,-6540.2,0.00017808,2]
[333930146,1722631910551,-9151.13,0.00017808,2]
[333930147,1722631910561,-4990.42,0.00017808,2]
[333930148,1722631910570,-509.1,0.00017808,2]
[333930149,1722631910581,-658.08,0.00017808,2]
[333930150,1722631910591,-3342.69,0.00017808,2]
[333930151,1722631910600,-500.0,0.00017808,2]
[333930152,1722631910610,-26009.1,0.00017808,2]
[333930153,1722631910619,-28175.02,0.00017808,2]
[333930154,1722631910629,-500.0,0.00017808,2]
[333930155,1722631910639,-4775.81,0.00017808,2]
[333930156,1722631910649,-1900.39,0.00017808,2]
[333930157,1722631910658,-2182.95,0.00017808,2]
[333930158,1722631910668,-1438.66,0.00017808,2]
[333930159,1722631910679,-4377.02,0.00017808,2]
[333930160,1722631910691,-500.0,0.00017808,2]
[333930161,1722631910700,-3264.99,0.00017808,2]
[333930162,1722631910710,-852.15,0.00017808,2]
[333930163,1722631910719,-6436.04,0.00017808,2]
[333930164,1722631910731,-645.59,0.00017808,2]
[333930165,1722631910740,-500.0,0.00017808,2]
[333930166,1722631910750,-1240.73,0.00017808,2]
[333930167,1722631910763,-3696.16,0.00017808,2]
[333930168,1722631910773,-1202.01,0.00017808,2]
[333930169,1722631910783,-2794.37,0.00017808,2]
[333930170,1722631910793,-500.0,0.00017808,2]
[333930171,1722631910803,-2251.71,0.00017808,2]
[333930172,1722631910813,-500.0,0.00017808,2]
[333930173,1722631910824,-3027.14,0.00017808,2]
[333930174,1722631910835,-926.19,0.00017808,2]
[333930175,1722631910844,-504.24,0.00017808,2]
[333930176,1722631910855,-1612.54,0.00017808,2]
[333930177,1722631910865,-500.0,0.00017808,2]
[333930178,1722631910874,-2122.85,0.00017808,2]
[333930179,1722631910884,-3341.29,0.00017808,2]
[333930180,1722631910894,-694.52,0.00017808,2]
[333930181,1722631910904,-1082.52,0.00017808,2]
[333930182,1722631910913,-650.54,0.00017808,2]
[333930183,1722631910923,-2598.43,0.00017808,2]
[333930184,1722631910932,-6297.72,0.00017808,2]
[333930185,1722631910942,-2653.91,0.00017808,2]
[333930186,1722631910952,-2172.15,0.00017808,2]
[333930187,1722631910962,-500.0,0.00017808,2]
[333930188,1722631910972,-500.0,0.00017808,2]
[333930189,1722631910982,-948.12,0.00017808,2]
[333930190,1722631910992,-1222.98,0.00017808,2]
[333930191,1722631911001,-441.94500766,0.00017808,2]
[333930192,1722631911011,-2097.85,0.00017808,2]
[333930193,1722631911020,-1334.04,0.00017808,2]
[333930194,1722631911030,-500.0,0.00017808,2]
[333930195,1722631911040,-6565.68,0.00017808,2]
[333930196,1722631911050,-500.0,0.00017808,2]
[333930197,1722631911059,-15546.98,0.00017808,2]
[333930198,1722631911069,-3121.8,0.00017808,2]
[333930199,1722631911079,-500.0,0.00017808,2]
[333930200,1722631911089,-817.51,0.00017808,2]
[333930201,1722631911099,-951.07,0.00017808,2]
[333930202,1722631911109,-1727.02,0.00017808,2]
[333930203,1722631911119,-11666.5,0.00017808,2]
[333930204,1722631911130,-1473.22,0.00017808,2]
[333930205,1722631911139,-2288.81,0.00017808,2]
[333930206,1722631911149,-6263.88,0.00017808,2]
[333930207,1722631911158,-1227.93,0.00017808,2]
[333930208,1722631911168,-1322.25,0.00017808,2]
[333930209,1722631911178,-522.62,0.00017808,2]
[333930210,1722631911188,-500.0,0.00017808,2]
[333930211,1722631911197,-1919.7,0.00017808,2]
[333930212,1722631911208,-500.0,0.00017808,2]
[333930213,1722631911218,-3515.09,0.00017808,2]
[333930214,1722631911228,-3829.18,0.00017808,2]
[333930215,1722631911237,-5376.17,0.00017808,2]
[333930216,1722631911247,-673.19,0.00017808,2]
[333930217,1722631911258,-2822.75,0.00017808,2]
[333930218,1722631911268,-981.35,0.00017808,2]
[333930219,1722631911278,-685.52,0.00017808,2]
[333930220,1722631911288,-500.0,0.00017808,2]
[333930221,1722631911298,-4435.49,0.00017808,2]
[333930222,1722631911309,-872.74,0.00017808,2]
[333930223,1722631911319,-949.06,0.00017808,2]
[333930224,1722631911329,-2658.03,0.00017808,2]
[333930225,1722631911339,-5218.0,0.00017808,2]
[333930226,1722631911348,-500.0,0.00017808,2]
[333930227,1722631911358,-574.23,0.00017808,2]
[333930228,1722631911368,-3400.22,0.00017808,2]
[333930229,1722631911378,-2831.52,0.00017808,2]
[333930230,1722631911387,-1002.52,0.00017808,2]
[333930231,1722631911398,-2314.61,0.00017808,2]
[333930232,1722631911408,-2008.35,0.00017808,2]
[333930233,1722631911418,-500.0,0.00017808,2]
[333930234,1722631911429,-776.68,0.00017808,2]
[333930235,1722631911439,-500.0,0.00017808,2]
[333930236,1722631911449,-739.66,0.00017808,2]
[333930237,1722631911460,-952.19,0.00017808,2]
[333930238,1722631911470,-164.59524386,0.00017808,2]
[333930239,1722631911480,-3943.83,0.00017808,2]
[333930240,1722631911489,-400.0,0.00017808,2]
[333930241,1722631911499,-1370.55,0.00017808,2]
[333930242,1722631911509,-879.88,0.00017808,2]
[333930243,1722631911519,-5662.54,0.00017808,2]
[333930244,1722631911529,-778.51,0.00017808,2]
[333930245,1722631911538,-4114.11,0.00017808,2]
[333930246,1722631911548,-3003.87,0.00017808,2]
[333930247,1722631911558,-2947.17,0.00017808,2]
[333930248,1722631911568,-994.11,0.00017808,2]
[333930249,1722631911578,-500.0,0.00017808,2]
[333930250,1722631911588,-5178.68,0.00017808,2]
[333930251,1722631911597,-500.0,0.00017808,2]
[333930252,1722631911607,-3399.15,0.00017808,2]
[333930253,1722631911618,-4631.47,0.00017808,2]
[333930254,1722631911629,-3719.52,0.00017808,2]
[333930255,1722631911640,-1176.85,0.00017808,2]
[333930256,1722631911650,-901.79,0.00017808,2]
[333930257,1722631911660,-500.0,0.00017808,2]
[333930258,1722631911671,-1866.32,0.00017808,2]
[333930259,1722631911686,-2716.92,0.00017808,2]
[333930260,1722631911696,-5014.53,0.00017808,2]
[333930261,1722631911706,-6934.89,0.00017808,2]
[333930262,1722631911716,-500.0,0.00017808,2]
[333930263,1722631911726,-2157.87,0.00017808,2]
[333930264,1722631911736,-1862.83,0.00017808,2]
[333930265,1722631911746,-3448.97,0.00017808,2]
[333930266,1722631911757,-502.73,0.00017808,2]
[333930267,1722631911767,-1053.43,0.00017808,2]
[333930268,1722631911777,-3688.62,0.00017808,2]
[333930269,1722631911787,-1295.04,0.00017808,2]
[333930270,1722631911797,-17990.99,0.00017808,2]
[333930271,1722631911806,-9446.74,0.00017808,2]
[333930272,1722631911816,-940.79,0.00017808,2]
[333930273,1722631911825,-500.0,0.00017808,2]
[333930274,1722631911835,-6650.95,0.00017808,2]
[333930275,1722631911844,-500.0,0.00017808,2]
[333930276,1722631911854,-500.0,0.00017808,2]
[333930277,1722631911864,-2082.58,0.00017808,2]
[333930278,1722631911873,-4468.87,0.00017808,2]
[333930279,1722631911883,-1111.44,0.00017808,2]
[333930280,1722631911892,-3800.28,0.00017808,2]
[333930281,1722631911902,-1255.1,0.00017808,2]
[333930282,1722631911911,-500.0,0.00017808,2]
[333930283,1722631911921,-750.36,0.00017808,2]
[333930284,1722631911930,-1533.49,0.00017808,2]
[333930285,1722631911939,-3300.34,0.00017808,2]
[333930286,1722631911948,-500.0,0.00017808,2]
[333930287,1722631911961,-3049.98,0.00017808,2]
[333930288,1722631911971,-1836.69,0.00017808,2]
[333930289,1722631911981,-1276.99,0.00017808,2]
[333930290,1722631911990,-2045.49,0.00017808,2]
[333930291,1722631912000,-1190.92,0.00017808,2]
[333930292,1722631912014,-537.78,0.00017808,2]
[333930293,1722631912023,-3361.18,0.00017808,2]
[333930294,1722631912033,-193.27104622,0.00017808,2]
[333930295,1722631912042,-896.88,0.00017808,2]
[333930296,1722631912051,-939.76,0.00017808,2]
[333930297,1722631912061,-200.0,0.00017873,2]
[333930298,1722631912070,-199.88200713,0.00017873,2]
[333930299,1722631912080,-200.0,0.00017873,2]
[333930300,1722631912089,-133936.55843169,0.0001788,2]
[333930301,1722631912099,-151.72863448,0.00017923,2]
[333930302,1722631912108,-16045.63488926,0.0001797,2]
[333930303,1722631912118,-347.01013436,0.0001797,2]
[333930304,1722631912127,-1000.0,0.00017985,2]
[333930305,1722631912137,-10327.00008,0.00017988,2]
[333930306,1722631912148,-7365.5581084,0.00017988,2]
[333930307,1722631912158,-884.7919639,0.00017988,2]
[333930308,1722631912169,-73508.6761986,0.00017988,2]
[333930309,1722631912178,-4764.4994672,0.00017988,2]
[333930310,1722631912187,-8778.18747707,0.00017999,2]
[333930311,1722631912197,-371.71125404,0.00018,2]
[333930312,1722631912209,-1224273.11183888,0.00018,2]
[333930313,1722631913077,-890.41056308,0.00018,2]
[333930314,1722631913090,-2421.36262742,0.00018,2]
[333930315,1722631913113,-2572.45,0.00017808,2]
[333930316,1722631913122,-629.96510505,0.00018,2]
[333930317,1722631913137,-32367.3476292,0.00018,2]
[333930318,1722631913148,-6500.0,0.00018,2]
[333930319,1722631913160,-884.16644664,0.00018,2]
[333930320,1722631913738,-500.0,0.00016438,2]
[333930321,1722631913754,-150.0,0.00016445,2]
[333930322,1722631913770,-500.0,0.00016712,2]
[333930323,1722631913780,-46.03519972,0.00016986,2]
[333930324,1722631913796,-453.96480028,0.00016986,2]
[333930325,1722631913810,-500.0,0.0001726,2]
[333930326,1722631913825,-92824.19878036,0.00018,2]
[333930327,1722631913935,-1245.57423992,0.00018,2]
[333930328,1722631913949,-228487.95895451,0.00018,2]
[333930329,1722631913989,-384.34999965,0.00018,2]
[333930330,1722631914005,-360.80937151,0.00018,2]
[333930331,1722631914019,-13010.4,0.00018,2]
[333930332,1722631914222,-3259.0,0.00018,2]
[333930333,1722631914236,-5878.42491735,0.00018,2]
[333930334,1722631914267,-420944.96768108,0.00018,2]
[333930335,1722631914280,-2815.20973985,0.00018,2]
[333930336,1722631914295,-13006.0,0.00018,2]
[333930337,1722631914890,-170.33874759,0.00013283,2]
[333930338,1722631914903,-500.0,0.00017534,2]
[333930339,1722631914916,-573.60038381,0.00018,2]
[333930340,1722631914931,-386.4338104,0.00018,2]
[333930341,1722631914944,-31482.02051374,0.00018,2]
[333930342,1722631914958,-9250.7235472,0.00018,2]
[333930343,1722631914972,-506.7346464,0.00018,2]
[333930344,1722631917374,-660.32229313,0.00016438,2]
[333930345,1722631917386,-497.67770687,0.00016438,2]
[333930346,1722631917399,-333.83697024,0.00016438,2]
[333930347,1722631917411,-592.98302976,0.00016438,2]
[333930348,1722631917420,-517.1161557,0.00016488,2]
[333930349,1722631917432,-820.90573202,0.00016488,2]
[333930350,1722631917443,-161.97811228,0.00016488,2]
[333930351,1722631917453,-926.82,0.00016712,2]
[333930352,1722631917463,-926.82,0.00016986,2]
[333930353,1722631917473,-926.82,0.0001726,2]
[333930354,1722631917482,-926.82,0.00017534,2]
[333930355,1722631917492,-500.0,0.00017808,2]
[333930356,1722631917501,-273.78584899,0.00018,2]
[333930357,1722631917524,-735.78348048,0.00016357,2]
[333930358,1722631917536,-620.1702649,0.00016357,2]
[333930359,1722631917554,-144.04625462,0.00016357,2]
[333930360,1722631917563,-403.79550965,0.00016435,2]
[333930361,1722631917575,-683.97176608,0.00016435,2]
[333930362,1722631917586,-412.23272427,0.00016435,2]
[333930363,1722631917595,-200.36575078,0.00016569,2]
[333930364,1722631917606,-926.82,0.00017808,2]
[333930365,1722631917615,-258485.8906206,0.00018,2]
[333930366,1722631917627,-1497.7095,0.00018,2]
[333930367,1722631917650,-1500.0,0.00016361,2]
[333930368,1722631917660,-1500.25975986,0.00018,2]
[333930369,1722631917672,-337.08969517,0.00018,2]
[333930370,1722631917689,-32510.00000001,0.00018,2]
[333930371,1722632105753,170.64,0.00014718,30]
[333930374,1722632248954,39149.28353206,0.0001221,120]
[333930375,1722632248980,1000000.0,0.0001221,120]
[333930376,1722632249002,249658.72,0.0001221,120]
[333930377,1722632249031,200000.0,0.0001221,120]
[333930378,1722632249058,1000000.0,0.0001221,120]
[333930379,1722632249083,150000.0,0.0001221,120]
[333930380,1722632249131,3000000.0,0.0001221,120]
[333930381,1722632249164,250000.0,0.0001221,120]
[333930382,1722632249191,722222.0,0.0001221,120]
[333930383,1722632249267,15000.0,0.0001221,120]
[333930384,1722632353485,3000000.0,0.000121,120]
[333930393,1722632914255,150.0,8.495e-05,2]